[Event "*** Titled Tuesday 3|2 Blitz (Early)"]
[Site "Chess.com"]
[Date "2016.12.06"]
[Round "9"]
[White "Morpheus4"]
[Black "Enzy63"]
[Result "0-1"]
[WhiteElo "1938"]
[BlackElo "2030"]
[TimeControl "180+2"]
[EndTime "13:03:20 PST"]
[Termination "Enzy63 won by checkmate"]

1. d4 {[%clk 0:02:57.1]} 1... Nf6 {[%clk 0:02:58.7]} 2. Nf3 {[%clk 0:02:57.4]}
2... g6 {[%clk 0:02:59.1]} 3. Bg5 {[%clk 0:02:58]} 3... Bg7 {[%clk 0:02:58.1]}
4. e3 {[%clk 0:02:57.7]} 4... O-O {[%clk 0:02:52.9]} 5. Nbd2 {[%clk 0:02:55.6]}
5... d5 {[%clk 0:02:53.1]} 6. Bd3 {[%clk 0:02:53.2]} 6... Nbd7 {[%clk 0:02:52]}
7. h4 {[%clk 0:02:51.5]} 7... h5 {[%clk 0:02:38.9]} 8. Bf4 {[%clk 0:02:38]} 8...
c5 {[%clk 0:02:31.1]} 9. c3 {[%clk 0:02:37.3]} 9... Ng4 {[%clk 0:02:21.5]} 10.
Bg5 {[%clk 0:01:58]} 10... Qb6 {[%clk 0:01:43.4]} 11. Rb1 {[%clk 0:01:28.6]}
11... e5 {[%clk 0:01:39.1]} 12. dxe5 {[%clk 0:01:20.7]} 12... Ndxe5 {[%clk
0:01:35.3]} 13. Be2 {[%clk 0:01:10.6]} 13... Bf5 {[%clk 0:01:33.1]} 14. O-O
{[%clk 0:01:05.3]} 14... Bxb1 {[%clk 0:01:31.9]} 15. Qxb1 {[%clk 0:01:04.6]}
15... Bf6 {[%clk 0:01:09.5]} 16. Bf4 {[%clk 0:00:46.4]} 16... Rfe8 {[%clk
0:01:03.3]} 17. Rd1 {[%clk 0:00:41.5]} 17... Rad8 {[%clk 0:00:59.6]} 18. Nb3
{[%clk 0:00:41]} 18... a5 {[%clk 0:00:46.2]} 19. Qc2 {[%clk 0:00:29.6]} 19...
Nc4 {[%clk 0:00:24.1]} 20. a4 {[%clk 0:00:22.4]} 20... Nge5 {[%clk 0:00:16.2]}
21. Ng5 {[%clk 0:00:15.9]} 21... Qc7 {[%clk 0:00:08]} 22. Nf3 {[%clk 0:00:13.2]}
22... b6 {[%clk 0:00:07.7]} 23. Nbd2 {[%clk 0:00:11.1]} 23... Qe7 {[%clk
0:00:07.9]} 24. Nxc4 {[%clk 0:00:10.9]} 24... Nxc4 {[%clk 0:00:08.8]} 25. Bxc4
{[%clk 0:00:10.7]} 25... dxc4 {[%clk 0:00:10.7]} 26. Qe2 {[%clk 0:00:08.9]}
26... Rxd1+ {[%clk 0:00:11.1]} 27. Qxd1 {[%clk 0:00:09.2]} 27... Qd8 {[%clk
0:00:12.6]} 28. Qe2 {[%clk 0:00:08.6]} 28... Qd3 {[%clk 0:00:13.5]} 29. Qe1
{[%clk 0:00:09.2]} 29... Rd8 {[%clk 0:00:12]} 30. Kh2 {[%clk 0:00:09]} 30... Qd1
{[%clk 0:00:11.9]} 31. Qxd1 {[%clk 0:00:08.6]} 31... Rxd1 {[%clk 0:00:13.8]} 32.
Be5 {[%clk 0:00:08.6]} 32... Bd8 {[%clk 0:00:11.5]} 33. Bd6 {[%clk 0:00:06.5]}
33... Rb1 {[%clk 0:00:11.8]} 34. Ne5 {[%clk 0:00:06.4]} 34... Rxb2 {[%clk
0:00:10.9]} 35. Nxc4 {[%clk 0:00:05.9]} 35... Rb3 {[%clk 0:00:11.9]} 36. Be5
{[%clk 0:00:04]} 36... f6 {[%clk 0:00:12.8]} 37. Bd6 {[%clk 0:00:01.8]} 37...
Rxc3 {[%clk 0:00:13.2]} 38. Nd2 {[%clk 0:00:03.7]} 38... Kf7 {[%clk 0:00:13.3]}
39. Ne4 {[%clk 0:00:04.7]} 39... Ra3 {[%clk 0:00:13.4]} 40. Bg3 {[%clk
0:00:03.7]} 40... Rxa4 {[%clk 0:00:13.7]} 41. Nc3 {[%clk 0:00:03.4]} 41... Rb4
{[%clk 0:00:13]} 42. Nd5 {[%clk 0:00:04.6]} 42... a4 {[%clk 0:00:12.6]} 43. f3
{[%clk 0:00:06.5]} 43... a3 {[%clk 0:00:12.6]} 44. Nxb4 {[%clk 0:00:05.5]} 44...
cxb4 {[%clk 0:00:13.3]} 45. e4 {[%clk 0:00:06.8]} 45... a2 {[%clk 0:00:11.3]}
46. e5 {[%clk 0:00:08.6]} 46... a1=Q {[%clk 0:00:11.5]} 47. e6+ {[%clk
0:00:07.5]} 47... Kxe6 {[%clk 0:00:11.9]} 48. Bf4 {[%clk 0:00:09.2]} 48... b3
{[%clk 0:00:11]} 49. Kg3 {[%clk 0:00:11]} 49... b2 {[%clk 0:00:11.4]} 50. Be3
{[%clk 0:00:11.4]} 50... b1=Q {[%clk 0:00:11.6]} 51. Bf4 {[%clk 0:00:13.3]}
51... Qe1+ {[%clk 0:00:12]} 52. Kh2 {[%clk 0:00:12.5]} 52... Qxh4# {[%clk
0:00:11.9]} 0-1

[Event "*** Titled Tuesday 3|2 Blitz (Early)"]
[Site "Chess.com"]
[Date "2016.12.06"]
[Round "9"]
[White "Wolverine_master"]
[Black "RitvarsReimanis"]
[Result "0-1"]
[WhiteElo "2042"]
[BlackElo "2395"]
[TimeControl "180+2"]
[EndTime "13:04:57 PST"]
[Termination "RitvarsReimanis won on time"]

1. e4 {[%clk 0:03:02]} 1... c5 {[%clk 0:02:59.1]} 2. Nf3 {[%clk 0:03:02.9]} 2...
Nc6 {[%clk 0:02:59.6]} 3. d4 {[%clk 0:03:04.2]} 3... cxd4 {[%clk 0:03:00.7]} 4.
Nxd4 {[%clk 0:03:05.8]} 4... Nf6 {[%clk 0:03:01.9]} 5. Nc3 {[%clk 0:03:06.8]}
5... d6 {[%clk 0:03:03.1]} 6. Be2 {[%clk 0:03:04.9]} 6... e5 {[%clk 0:03:03.4]}
7. Nb3 {[%clk 0:03:02.1]} 7... a5 {[%clk 0:03:04.2]} 8. a4 {[%clk 0:02:57.5]}
8... Be6 {[%clk 0:03:04.5]} 9. O-O {[%clk 0:02:58.2]} 9... d5 {[%clk 0:02:56.5]}
10. exd5 {[%clk 0:02:56.8]} 10... Nxd5 {[%clk 0:02:58.4]} 11. Nxd5 {[%clk
0:02:55.5]} 11... Bxd5 {[%clk 0:02:57.5]} 12. Bf3 {[%clk 0:02:54.7]} 12... Be6
{[%clk 0:02:51.7]} 13. Qxd8+ {[%clk 0:02:49.8]} 13... Kxd8 {[%clk 0:02:52.5]}
14. Be3 {[%clk 0:02:46]} 14... Bxb3 {[%clk 0:02:42.7]} 15. cxb3 {[%clk 0:02:47]}
15... Bb4 {[%clk 0:02:38]} 16. Rac1 {[%clk 0:02:41.6]} 16... Rc8 {[%clk
0:02:34.6]} 17. Rfd1+ {[%clk 0:02:33.9]} 17... Ke7 {[%clk 0:02:34.4]} 18. Bc5+
{[%clk 0:02:28.7]} 18... Bxc5 {[%clk 0:02:31.4]} 19. Rxc5 {[%clk 0:02:29.4]}
19... Rhd8 {[%clk 0:02:29.3]} 20. Rdc1 {[%clk 0:02:19.5]} 20... f6 {[%clk
0:02:15.4]} 21. g3 {[%clk 0:02:08.9]} 21... Rd3 {[%clk 0:02:10.5]} 22. Bxc6
{[%clk 0:02:02.2]} 22... Rxc6 {[%clk 0:02:09.8]} 23. Rxc6 {[%clk 0:02:02.5]}
23... bxc6 {[%clk 0:02:11.7]} 24. Rxc6 {[%clk 0:02:03.2]} 24... Rxb3 {[%clk
0:02:09.9]} 25. Rc5 {[%clk 0:01:56]} 25... Rxb2 {[%clk 0:02:07.2]} 26. Rxa5
{[%clk 0:01:56.9]} 26... Ra2 {[%clk 0:01:50.9]} 27. Ra7+ {[%clk 0:01:55.9]}
27... Kf8 {[%clk 0:01:50.9]} 28. h4 {[%clk 0:01:28.5]} 28... h5 {[%clk
0:01:47.2]} 29. Kg2 {[%clk 0:01:18]} 29... e4 {[%clk 0:01:47.8]} 30. Kg1 {[%clk
0:01:07.1]} 30... Kg8 {[%clk 0:01:45.2]} 31. Ra5 {[%clk 0:01:05.8]} 31... Kf7
{[%clk 0:01:42.6]} 32. Rxh5 {[%clk 0:01:05.6]} 32... Rxa4 {[%clk 0:01:40.6]} 33.
Rc5 {[%clk 0:01:04.8]} 33... Ra1+ {[%clk 0:01:41.4]} 34. Kg2 {[%clk 0:01:05.7]}
34... Ra2 {[%clk 0:01:43]} 35. Rc3 {[%clk 0:01:05.3]} 35... f5 {[%clk
0:01:42.2]} 36. Kf1 {[%clk 0:00:25.3]} 36... Kg6 {[%clk 0:01:38.5]} 37. f3
{[%clk 0:00:26.4]} 37... Rd2 {[%clk 0:01:29.2]} 38. fxe4 {[%clk 0:00:25.5]}
38... fxe4 {[%clk 0:01:30.3]} 39. Re3 {[%clk 0:00:27]} 39... Kf5 {[%clk
0:01:30.4]} 40. h5 {[%clk 0:00:18.2]} 40... Rh2 {[%clk 0:01:27.8]} 41. g4+
{[%clk 0:00:18.5]} 41... Kf4 {[%clk 0:01:27.7]} 42. Ra3 {[%clk 0:00:14.2]} 42...
Rh4 {[%clk 0:01:10.9]} 43. Ra6 {[%clk 0:00:09.8]} 43... Rxg4 {[%clk 0:01:09.2]}
44. h6 {[%clk 0:00:11.1]} 44... g5 {[%clk 0:01:03.8]} 45. h7 {[%clk 0:00:04.9]}
45... Rh4 {[%clk 0:01:05.1]} 46. Ra7 {[%clk 0:00:06.4]} 46... Kg3 {[%clk
0:00:55.7]} 47. Rg7 {[%clk 0:00:06.7]} 47... g4 {[%clk 0:00:55.2]} 48. Ke2
{[%clk 0:00:08]} 48... Kf4 {[%clk 0:00:51.6]} 49. Rf7+ {[%clk 0:00:08.4]} 49...
Kg5 {[%clk 0:00:52.4]} 50. Ke3 {[%clk 0:00:09.6]} 50... Kg6 {[%clk 0:00:44.4]}
51. Rf4 {[%clk 0:00:06]} 51... Kg5 {[%clk 0:00:44.4]} 52. Rf7 {[%clk 0:00:06]}
52... Kg6 {[%clk 0:00:31.8]} 53. Rf4 {[%clk 0:00:06.1]} 53... Kxh7 {[%clk
0:00:24.2]} 54. Rxe4 {[%clk 0:00:04.9]} 54... Kg6 {[%clk 0:00:23.1]} 55. Kf2
{[%clk 0:00:06.3]} 55... Kf5 {[%clk 0:00:23]} 56. Ra4 {[%clk 0:00:07.1]} 56...
Rh2+ {[%clk 0:00:21]} 57. Kg3 {[%clk 0:00:07.5]} 57... Rh3+ {[%clk 0:00:22.6]}
58. Kg2 {[%clk 0:00:08.4]} 58... Rb3 {[%clk 0:00:21.6]} 59. Kf2 {[%clk
0:00:07.8]} 59... Kg5 {[%clk 0:00:22]} 60. Kg2 {[%clk 0:00:07.8]} 60... Kh4
{[%clk 0:00:21.6]} 61. Ra7 {[%clk 0:00:08.1]} 61... Rb2+ {[%clk 0:00:21.9]} 62.
Kf1 {[%clk 0:00:06.5]} 62... Kh3 {[%clk 0:00:23.2]} 63. Rh7+ {[%clk 0:00:06.1]}
63... Kg3 {[%clk 0:00:24.2]} 64. Rg7 {[%clk 0:00:07.6]} 64... Rf2+ {[%clk
0:00:21.7]} 65. Kg1 {[%clk 0:00:08.1]} 65... Rb2 {[%clk 0:00:21.4]} 66. Kf1
{[%clk 0:00:09.3]} 66... Rb1+ {[%clk 0:00:22.8]} 67. Ke2 {[%clk 0:00:10.2]}
67... Kh3 {[%clk 0:00:18.7]} 68. Kf2 {[%clk 0:00:09.3]} 68... Rb2+ {[%clk
0:00:17.6]} 69. Kg1 {[%clk 0:00:09.3]} 69... Rg2+ {[%clk 0:00:15.8]} 70. Kf1
{[%clk 0:00:05.4]} 70... Ra2 {[%clk 0:00:13.8]} 71. Kg1 {[%clk 0:00:05.2]} 71...
Kg3 {[%clk 0:00:12.3]} 72. Kf1 {[%clk 0:00:05.8]} 72... Rb2 {[%clk 0:00:13.6]}
73. Rg8 {[%clk 0:00:05.2]} 73... Rb4 {[%clk 0:00:13.5]} 74. Rg7 {[%clk
0:00:06.2]} 74... Rf4+ {[%clk 0:00:13.8]} 75. Kg1 {[%clk 0:00:06.7]} 75... Kf3
{[%clk 0:00:15.2]} 76. Rg8 {[%clk 0:00:06.4]} 76... Rf5 {[%clk 0:00:15.9]} 77.
Rg7 {[%clk 0:00:06.4]} 77... Rb5 {[%clk 0:00:16.8]} 78. Rg8 {[%clk 0:00:07.3]}
78... Rb1+ {[%clk 0:00:16.7]} 79. Kh2 {[%clk 0:00:08.1]} 79... Rb2+ {[%clk
0:00:13.8]} 80. Kg1 {[%clk 0:00:08.6]} 80... Rc2 {[%clk 0:00:13.6]} 81. Rg7
{[%clk 0:00:07.4]} 81... Kg3 {[%clk 0:00:14.7]} 82. Kf1 {[%clk 0:00:07.7]} 82...
Rh2 {[%clk 0:00:14.9]} 83. Rg8 {[%clk 0:00:07.3]} 83... Rh1+ {[%clk 0:00:15.8]}
84. Ke2 {[%clk 0:00:08.4]} 84... Rh4 {[%clk 0:00:14.3]} 85. Kf1 {[%clk
0:00:08.8]} 85... Kh2 {[%clk 0:00:14.8]} 86. Kf2 {[%clk 0:00:09]} 86... Kh3
{[%clk 0:00:12.5]} 87. Rg7 {[%clk 0:00:09.4]} 87... Rh5 {[%clk 0:00:13.2]} 88.
Kg1 {[%clk 0:00:07.8]} 88... Rd5 {[%clk 0:00:10.9]} 0-1